[Event "*** Titled Tuesday Blitz"]
[Site "Chess.com"]
[Date "2020.10.27"]
[Round "3"]
[White "Brave_spirit12"]
[Black "vinniethepooh"]
[Result "1/2-1/2"]
[WhiteElo "2479"]
[BlackElo "2567"]
[TimeControl "180+1"]
[EndTime "10:30:37 PDT"]
[Termination "Game drawn by stalemate"]

1. e4 {[%clk 0:03:00.9]} 1... c5 {[%clk 0:02:59.9]} 2. c3 {[%clk 0:02:58.5]}
2... d5 {[%clk 0:02:58.8]} 3. exd5 {[%clk 0:02:56.4]} 3... Qxd5 {[%clk
0:02:59.7]} 4. Nf3 {[%clk 0:02:56.7]} 4... Nf6 {[%clk 0:03:00.1]} 5. d4 {[%clk
0:02:56.7]} 5... e6 {[%clk 0:03:00.4]} 6. Be2 {[%clk 0:02:56.7]} 6... Nc6 {[%clk
0:02:57.4]} 7. Be3 {[%clk 0:02:55.6]} 7... cxd4 {[%clk 0:02:53.2]} 8. Nxd4
{[%clk 0:02:56]} 8... Nxd4 {[%clk 0:02:32.5]} 9. Bxd4 {[%clk 0:02:56.9]} 9... e5
{[%clk 0:02:23.3]} 10. Be3 {[%clk 0:02:32.6]} 10... Qxd1+ {[%clk 0:02:21]} 11.
Bxd1 {[%clk 0:02:33.5]} 11... Bd7 {[%clk 0:02:15.9]} 12. Nd2 {[%clk 0:02:29.2]}
12... Bc6 {[%clk 0:02:13.2]} 13. Bf3 {[%clk 0:02:28.7]} 13... Nd5 {[%clk
0:02:13.1]} 14. O-O-O {[%clk 0:02:24.8]} 14... Nxe3 {[%clk 0:01:52.9]} 15. Bxc6+
{[%clk 0:02:19.5]} 15... bxc6 {[%clk 0:01:53.8]} 16. fxe3 {[%clk 0:02:20.4]}
16... Be7 {[%clk 0:01:38.9]} 17. Nc4 {[%clk 0:02:17.2]} 17... f6 {[%clk
0:01:22.7]} 18. Nd6+ {[%clk 0:02:14.5]} 18... Kf8 {[%clk 0:01:07.4]} 19. Nf5
{[%clk 0:02:13.2]} 19... g6 {[%clk 0:01:07.6]} 20. Ng3 {[%clk 0:01:50.7]} 20...
Kf7 {[%clk 0:01:00.4]} 21. Rd7 {[%clk 0:01:49.4]} 21... Ke6 {[%clk 0:00:57.2]}
22. Rhd1 {[%clk 0:01:48.6]} 22... a5 {[%clk 0:00:36]} 23. a4 {[%clk 0:01:41]}
23... f5 {[%clk 0:00:31.5]} 24. Kc2 {[%clk 0:01:38.2]} 24... Rhd8 {[%clk
0:00:28.4]} 25. Rb7 {[%clk 0:01:35]} 25... Rxd1 {[%clk 0:00:25.8]} 26. Kxd1
{[%clk 0:01:35.9]} 26... h5 {[%clk 0:00:17.8]} 27. Nf1 {[%clk 0:01:34.2]} 27...
h4 {[%clk 0:00:17.7]} 28. Ke2 {[%clk 0:01:33.2]} 28... g5 {[%clk 0:00:16.1]} 29.
h3 {[%clk 0:01:33.1]} 29... e4 {[%clk 0:00:15.1]} 30. Nd2 {[%clk 0:01:32.6]}
30... Bf6 {[%clk 0:00:09.3]} 31. Nc4 {[%clk 0:01:32.2]} 31... g4 {[%clk
0:00:09.5]} 32. Rc7 {[%clk 0:01:30.8]} 32... gxh3 {[%clk 0:00:03]} 33. gxh3
{[%clk 0:01:29.4]} 33... Rg8 {[%clk 0:00:03.5]} 34. Rxc6+ {[%clk 0:01:28.4]}
34... Ke7 {[%clk 0:00:02.3]} 35. Kf2 {[%clk 0:01:24.3]} 35... Rg3 {[%clk
0:00:02.4]} 36. Nd6 {[%clk 0:01:22.4]} 36... Rxh3 {[%clk 0:00:02.2]} 37. Nxf5+
{[%clk 0:01:22.2]} 37... Kf7 {[%clk 0:00:02.9]} 38. Nh6+ {[%clk 0:01:02.8]}
38... Kg7 {[%clk 0:00:02.3]} 39. Nf5+ {[%clk 0:01:01.7]} 39... Kf7 {[%clk
0:00:02.4]} 40. Nd6+ {[%clk 0:00:50.3]} 40... Ke7 {[%clk 0:00:02.8]} 41. Nxe4
{[%clk 0:00:51.2]} 41... Be5 {[%clk 0:00:03.3]} 42. b4 {[%clk 0:00:45.4]} 42...
Rh2+ {[%clk 0:00:02.9]} 43. Kf3 {[%clk 0:00:45.1]} 43... Ra2 {[%clk 0:00:03.5]}
44. bxa5 {[%clk 0:00:37.6]} 44... h3 {[%clk 0:00:03.1]} 45. Rh6 {[%clk
0:00:31.4]} 45... h2 {[%clk 0:00:02.8]} 46. a6 {[%clk 0:00:28.7]} 46... Rxa4
{[%clk 0:00:02.9]} 47. Ng3 {[%clk 0:00:19.2]} 47... Bxg3 {[%clk 0:00:01.6]} 48.
Kxg3 {[%clk 0:00:18.9]} 48... Rxa6 {[%clk 0:00:02.5]} 49. Rxh2 {[%clk
0:00:18.6]} 49... Ra3 {[%clk 0:00:03.2]} 50. Rc2 {[%clk 0:00:16.4]} 50... Ke6
{[%clk 0:00:02.8]} 51. Kf3 {[%clk 0:00:16.5]} 51... Kd5 {[%clk 0:00:03]} 52. e4+
{[%clk 0:00:16.6]} 52... Ke5 {[%clk 0:00:03.6]} 53. Ke3 {[%clk 0:00:15.9]} 53...
Ra4 {[%clk 0:00:04.1]} 54. Kd3 {[%clk 0:00:14.9]} 54... Rxe4 {[%clk 0:00:04]}
55. c4 {[%clk 0:00:09.4]} 55... Rh4 {[%clk 0:00:04.2]} 56. Kc3 {[%clk
0:00:07.8]} 56... Kd6 {[%clk 0:00:04]} 57. Kb4 {[%clk 0:00:07.4]} 57... Rh1
{[%clk 0:00:04.2]} 58. Rg2 {[%clk 0:00:05.1]} 58... Rb1+ {[%clk 0:00:03.7]} 59.
Kc3 {[%clk 0:00:05.6]} 59... Rc1+ {[%clk 0:00:03.9]} 60. Kd3 {[%clk 0:00:06.1]}
60... Rd1+ {[%clk 0:00:04.2]} 61. Kc2 {[%clk 0:00:06.6]} 61... Rf1 {[%clk
0:00:04.7]} 62. Kc3 {[%clk 0:00:07.1]} 62... Rc1+ {[%clk 0:00:04.1]} 63. Kb3
{[%clk 0:00:07.5]} 63... Rb1+ {[%clk 0:00:04.3]} 64. Kc2 {[%clk 0:00:06.8]}
64... Rf1 {[%clk 0:00:04.3]} 65. Rg5 {[%clk 0:00:07.3]} 65... Kc6 {[%clk
0:00:04.1]} 66. Kc3 {[%clk 0:00:06]} 66... Rf3+ {[%clk 0:00:04.5]} 67. Kb4
{[%clk 0:00:05.9]} 67... Rf6 {[%clk 0:00:04]} 68. Ra5 {[%clk 0:00:06]} 68... Kb6
{[%clk 0:00:04.2]} 69. c5+ {[%clk 0:00:06.3]} 69... Kb7 {[%clk 0:00:04.8]} 70.
Kb5 {[%clk 0:00:06.5]} 70... Rf1 {[%clk 0:00:05.2]} 71. Ra4 {[%clk 0:00:05.4]}
71... Rb1+ {[%clk 0:00:04.7]} 72. Kc4 {[%clk 0:00:05.9]} 72... Rc1+ {[%clk
0:00:05.1]} 73. Kd5 {[%clk 0:00:06.2]} 73... Rd1+ {[%clk 0:00:05.3]} 74. Rd4
{[%clk 0:00:05.8]} 74... Rxd4+ {[%clk 0:00:05.1]} 75. Kxd4 {[%clk 0:00:06.7]}
75... Kc6 {[%clk 0:00:06]} 76. Kc4 {[%clk 0:00:07.6]} 76... Kc7 {[%clk
0:00:06.5]} 77. Kd5 {[%clk 0:00:08.5]} 77... Kd7 {[%clk 0:00:07]} 78. c6+ {[%clk
0:00:09.4]} 78... Kc7 {[%clk 0:00:07.6]} 79. Kc5 {[%clk 0:00:10]} 79... Kc8
{[%clk 0:00:08.3]} 80. Kc4 {[%clk 0:00:10.6]} 80... Kc7 {[%clk 0:00:08.2]} 81.
Kb5 {[%clk 0:00:11.5]} 81... Kc8 {[%clk 0:00:08]} 82. Kb6 {[%clk 0:00:12.4]}
82... Kb8 {[%clk 0:00:08.1]} 83. Kc5 {[%clk 0:00:13.3]} 83... Kc7 {[%clk
0:00:07.8]} 84. Kd5 {[%clk 0:00:13.3]} 84... Kc8 {[%clk 0:00:07.7]} 85. Kd6
{[%clk 0:00:14.2]} 85... Kd8 {[%clk 0:00:08]} 86. Ke6 {[%clk 0:00:13.9]} 86...
Kc7 {[%clk 0:00:07.7]} 87. Kd5 {[%clk 0:00:14.3]} 87... Kc8 {[%clk 0:00:08.1]}
88. Kd6 {[%clk 0:00:14.6]} 88... Kd8 {[%clk 0:00:08.3]} 89. c7+ {[%clk
0:00:15.5]} 89... Kc8 {[%clk 0:00:08.3]} 90. Kc6 {[%clk 0:00:16.4]} 1/2-1/2

[Event "*** Titled Tuesday Blitz"]
[Site "Chess.com"]
[Date "2020.10.27"]
[Round "3"]
[White "MVM2008"]
[Black "chesstrainer2042"]
[Result "1-0"]
[WhiteElo "2228"]
[BlackElo "2413"]
[TimeControl "180+1"]
[EndTime "10:31:11 PDT"]
[Termination "MVM2008 won on time"]

1. e4 {[%clk 0:03:00.9]} 1... e5 {[%clk 0:02:59.3]} 2. f4 {[%clk 0:02:58.1]}
2... exf4 {[%clk 0:02:58.3]} 3. Nf3 {[%clk 0:02:57.7]} 3... g5 {[%clk 0:02:57]}
4. d4 {[%clk 0:02:55.2]} 4... d6 {[%clk 0:02:40.2]} 5. h4 {[%clk 0:02:52.2]}
5... g4 {[%clk 0:02:38.4]} 6. Bxf4 {[%clk 0:02:51.8]} 6... gxf3 {[%clk
0:02:37.7]} 7. Qxf3 {[%clk 0:02:52.7]} 7... Nc6 {[%clk 0:02:38]} 8. Bc4 {[%clk
0:02:40.7]} 8... Qf6 {[%clk 0:02:33.8]} 9. Nc3 {[%clk 0:02:22.5]} 9... Nxd4
{[%clk 0:02:28.5]} 10. Qf2 {[%clk 0:02:16.9]} 10... Be6 {[%clk 0:02:18.2]} 11.
O-O-O {[%clk 0:01:36.7]} 11... Bxc4 {[%clk 0:02:02.5]} 12. Rxd4 {[%clk
0:01:34.5]} 12... Be6 {[%clk 0:02:02.5]} 13. Kb1 {[%clk 0:01:19.3]} 13... Bh6
{[%clk 0:01:46.1]} 14. g3 {[%clk 0:01:13.6]} 14... O-O-O {[%clk 0:01:31.3]} 15.
e5 {[%clk 0:00:44.8]} 15... dxe5 {[%clk 0:01:17.7]} 16. Rxd8+ {[%clk 0:00:43]}
16... Kxd8 {[%clk 0:01:07.4]} 17. Rd1+ {[%clk 0:00:35.3]} 17... Ke8 {[%clk
0:00:45.3]} 18. Qxa7 {[%clk 0:00:27.4]} 18... Ne7 {[%clk 0:00:45.2]} 19. Ne4
{[%clk 0:00:18.9]} 19... Qg6 {[%clk 0:00:41.7]} 20. Bxe5 {[%clk 0:00:07.9]}
20... Qxe4 {[%clk 0:00:38.4]} 21. Bxh8 {[%clk 0:00:08.2]} 21... Nd5 {[%clk
0:00:35]} 22. Qa8+ {[%clk 0:00:04.8]} 22... Kd7 {[%clk 0:00:34.2]} 23. Qxb7
{[%clk 0:00:02.1]} 23... Ke7 {[%clk 0:00:32.1]} 24. Qb3 {[%clk 0:00:01.9]} 24...
Be3 {[%clk 0:00:29.1]} 25. Qa3+ {[%clk 0:00:02.8]} 25... Ke8 {[%clk 0:00:28]}
26. Qa8+ {[%clk 0:00:03.4]} 26... Ke7 {[%clk 0:00:28.3]} 27. Qa3+ {[%clk
0:00:03.2]} 27... Kd7 {[%clk 0:00:27.1]} 28. Bc3 {[%clk 0:00:03.1]} 28... Qc4
{[%clk 0:00:22]} 29. Be5 {[%clk 0:00:01.6]} 29... Kc8 {[%clk 0:00:18.4]} 30. Qb3
{[%clk 0:00:01.5]} 30... Qxb3 {[%clk 0:00:18]} 31. axb3 {[%clk 0:00:02.4]} 31...
h5 {[%clk 0:00:18]} 32. Bd4 {[%clk 0:00:01.9]} 32... Bh6 {[%clk 0:00:17.1]} 33.
Be5 {[%clk 0:00:01.9]} 33... c6 {[%clk 0:00:17.2]} 34. c4 {[%clk 0:00:01.9]}
34... Bf5+ {[%clk 0:00:16.1]} 35. Ka2 {[%clk 0:00:01.1]} 35... Nb4+ {[%clk
0:00:16.2]} 36. Ka3 {[%clk 0:00:01.8]} 36... Bf8 {[%clk 0:00:16.3]} 37. Ka4
{[%clk 0:00:01.6]} 37... Bd7 {[%clk 0:00:14.9]} 38. Ka5 {[%clk 0:00:01.5]} 38...
c5 {[%clk 0:00:13.7]} 39. Bd6 {[%clk 0:00:01.5]} 39... Nc6+ {[%clk 0:00:12.9]}
40. Kb6 {[%clk 0:00:01.8]} 40... Bg7 {[%clk 0:00:13]} 41. Bxc5 {[%clk
0:00:01.9]} 41... Bxb2 {[%clk 0:00:13.1]} 42. Rf1 {[%clk 0:00:01.8]} 42... f5
{[%clk 0:00:11.8]} 43. Bd6 {[%clk 0:00:02.1]} 43... Bf6 {[%clk 0:00:11.9]} 44.
Re1 {[%clk 0:00:01.9]} 44... Bd4+ {[%clk 0:00:10.4]} 45. c5 {[%clk 0:00:01.9]}
45... Bc3 {[%clk 0:00:09.8]} 46. Ra1 {[%clk 0:00:02.8]} 46... Ba5+ {[%clk
0:00:07.3]} 47. Kb5 {[%clk 0:00:01.7]} 47... Kb7 {[%clk 0:00:05.8]} 48. Kc4
{[%clk 0:00:02.6]} 48... Be6+ {[%clk 0:00:04.8]} 49. Kd3 {[%clk 0:00:02.5]}
49... Bxb3 {[%clk 0:00:04.2]} 50. Rb1 {[%clk 0:00:03.4]} 50... Nb4+ {[%clk
0:00:03.9]} 51. Kd4 {[%clk 0:00:03.1]} 51... Be6 {[%clk 0:00:04.3]} 52. Ke5
{[%clk 0:00:02.8]} 52... Bd7 {[%clk 0:00:04.6]} 53. Kf6 {[%clk 0:00:02.5]} 53...
Kc6 {[%clk 0:00:05.1]} 54. Ke7 {[%clk 0:00:02.3]} 54... Nd5+ {[%clk 0:00:05.5]}
55. Kf7 {[%clk 0:00:02.4]} 55... Bd2 {[%clk 0:00:05.7]} 56. Kg6 {[%clk
0:00:02.5]} 56... f4 {[%clk 0:00:06.1]} 57. gxf4 {[%clk 0:00:02.3]} 57... Bxf4
{[%clk 0:00:06.7]} 58. Bxf4 {[%clk 0:00:03.2]} 58... Nxf4+ {[%clk 0:00:06.6]}
59. Kg5 {[%clk 0:00:04.1]} 59... Ne6+ {[%clk 0:00:06.4]} 60. Kxh5 {[%clk
0:00:04.5]} 60... Nxc5 {[%clk 0:00:06.4]} 61. Kg6 {[%clk 0:00:04.2]} 61... Nd3
{[%clk 0:00:05.7]} 62. h5 {[%clk 0:00:03.6]} 62... Nf4+ {[%clk 0:00:05.7]} 63.
Kg5 {[%clk 0:00:03.6]} 63... Nxh5 {[%clk 0:00:06.3]} 64. Kxh5 {[%clk 0:00:03.2]}
64... Kd5 {[%clk 0:00:06.9]} 65. Rc1 {[%clk 0:00:04.1]} 65... Ke5 {[%clk
0:00:06.4]} 66. Kg5 {[%clk 0:00:05]} 66... Be6 {[%clk 0:00:06.2]} 67. Re1+
{[%clk 0:00:05.9]} 67... Kd6 {[%clk 0:00:06.4]} 68. Kf4 {[%clk 0:00:06.8]} 68...
Bc4 {[%clk 0:00:06.2]} 69. Rd1+ {[%clk 0:00:07.7]} 69... Ke6 {[%clk 0:00:05.7]}
70. Ke4 {[%clk 0:00:08.6]} 70... Bb3 {[%clk 0:00:05.5]} 71. Ra1 {[%clk
0:00:08.8]} 71... Bc2+ {[%clk 0:00:05.3]} 72. Kd4 {[%clk 0:00:07.3]} 72... Bb3
{[%clk 0:00:05.5]} 73. Re1+ {[%clk 0:00:03.7]} 73... Kd6 {[%clk 0:00:05.1]} 74.
Re3 {[%clk 0:00:02.9]} 74... Bf7 {[%clk 0:00:04.6]} 75. Rf3 {[%clk 0:00:02.7]}
75... Be6 {[%clk 0:00:04.7]} 76. Rf6 {[%clk 0:00:02.7]} 76... Ke7 {[%clk
0:00:04.9]} 77. Ke5 {[%clk 0:00:02.8]} 77... Bc4 {[%clk 0:00:05.3]} 78. Rc6
{[%clk 0:00:02.7]} 78... Bb3 {[%clk 0:00:05.3]} 79. Rc7+ {[%clk 0:00:02.8]}
79... Kf8 {[%clk 0:00:04.2]} 80. Kf6 {[%clk 0:00:03]} 80... Ke8 {[%clk
0:00:04.7]} 81. Re7+ {[%clk 0:00:02.7]} 81... Kd8 {[%clk 0:00:04.5]} 82. Rg7
{[%clk 0:00:03.6]} 82... Bd5 {[%clk 0:00:03.9]} 83. Ke5 {[%clk 0:00:03.9]} 83...
Bb3 {[%clk 0:00:03.1]} 84. Kd6 {[%clk 0:00:04.4]} 84... Ke8 {[%clk 0:00:03.3]}
85. Rg3 {[%clk 0:00:03]} 85... Bc4 {[%clk 0:00:02.5]} 86. Re3+ {[%clk
0:00:03.2]} 86... Kf8 {[%clk 0:00:01.9]} 87. Ke5 {[%clk 0:00:02]} 87... Ba2
{[%clk 0:00:01.5]} 88. Rc3 {[%clk 0:00:02.9]} 88... Ke7 {[%clk 0:00:01]} 89.
Rc7+ {[%clk 0:00:02.8]} 1-0

[Event "*** Titled Tuesday Blitz"]
[Site "Chess.com"]
[Date "2020.10.27"]
[Round "4"]
[White "FontVella8"]
[Black "politeplayer"]
[Result "0-1"]
[WhiteElo "2478"]
[BlackElo "2219"]
[TimeControl "180+1"]
[EndTime "10:33:50 PDT"]
[Termination "politeplayer won by resignation"]

1. e4 {[%clk 0:03:00.9]} 1... e6 {[%clk 0:02:59.1]} 2. d4 {[%clk 0:02:59.5]}
2... d5 {[%clk 0:02:59.6]} 3. Nc3 {[%clk 0:02:59.9]} 3... dxe4 {[%clk
0:02:59.9]} 4. Nxe4 {[%clk 0:03:00]} 4... Nd7 {[%clk 0:03:00.4]} 5. Nf3 {[%clk
0:02:58.9]} 5... Ngf6 {[%clk 0:03:00.2]} 6. Bd3 {[%clk 0:02:59]} 6... c5 {[%clk
0:02:57.2]} 7. dxc5 {[%clk 0:02:52.6]} 7... Nxc5 {[%clk 0:02:43.6]} 8. Nxf6+
{[%clk 0:02:20.2]} 8... gxf6 {[%clk 0:02:41.8]} 9. Bb5+ {[%clk 0:02:17.4]} 9...
Bd7 {[%clk 0:02:42]} 10. Qe2 {[%clk 0:02:13.1]} 10... Qa5+ {[%clk 0:02:34.5]}
0-1

[Event "*** Titled Tuesday Blitz"]
[Site "Chess.com"]
[Date "2020.10.27"]
[Round "4"]
[White "TimurGareyev"]
[Black "natelleka"]
[Result "1-0"]
[WhiteElo "2614"]
[BlackElo "2202"]
[TimeControl "180+1"]
[EndTime "10:33:55 PDT"]
[Termination "TimurGareyev won by resignation"]

1. e4 {[%clk 0:03:00.9]} 1... e5 {[%clk 0:03:00]} 2. f4 {[%clk 0:02:59.9]} 2...
Bc5 {[%clk 0:02:58.1]} 3. Nf3 {[%clk 0:02:59.8]} 3... d6 {[%clk 0:02:58]} 4. Nc3
{[%clk 0:03:00.1]} 4... Nc6 {[%clk 0:02:54.7]} 5. Bb5 {[%clk 0:02:59.2]} 5... a6
{[%clk 0:02:50.8]} 6. Bxc6+ {[%clk 0:02:58.6]} 6... bxc6 {[%clk 0:02:50.1]} 7.
fxe5 {[%clk 0:02:58]} 7... dxe5 {[%clk 0:02:48.3]} 8. d3 {[%clk 0:02:58.4]} 8...
Nf6 {[%clk 0:02:40.8]} 9. Qe2 {[%clk 0:02:57.1]} 9... Qe7 {[%clk 0:02:33.4]} 10.
Be3 {[%clk 0:02:56.3]} 10... Bxe3 {[%clk 0:02:19.1]} 11. Qxe3 {[%clk 0:02:57.2]}
11... Qb4 {[%clk 0:02:18.7]} 12. O-O-O {[%clk 0:02:55.5]} 12... Rb8 {[%clk
0:02:17.5]} 13. Kd2 {[%clk 0:02:52.5]} 13... O-O {[%clk 0:01:51.4]} 14. Nxe5
{[%clk 0:02:51.4]} 14... Rd8 {[%clk 0:01:45.9]} 15. Nxc6 {[%clk 0:02:48]} 15...
Nxe4+ {[%clk 0:01:41.1]} 16. Qxe4 {[%clk 0:02:46.2]} 16... Qxe4 {[%clk
0:01:38.8]} 17. Nxe4 {[%clk 0:02:45.7]} 1-0

[Event "*** Titled Tuesday Blitz"]
[Site "Chess.com"]
[Date "2020.10.27"]
[Round "4"]
[White "TST2014"]
[Black "krasavetc"]
[Result "1-0"]
[WhiteElo "2498"]
[BlackElo "2294"]
[TimeControl "180+1"]
[EndTime "10:34:01 PDT"]
[Termination "TST2014 won by resignation"]

1. d4 {[%clk 0:03:00.9]} 1... Nf6 {[%clk 0:02:53.5]} 2. c4 {[%clk 0:03:00.4]}
2... e6 {[%clk 0:02:54]} 3. Nf3 {[%clk 0:03:00.3]} 3... Be7 {[%clk 0:02:54.9]}
4. Nc3 {[%clk 0:02:57.7]} 4... O-O {[%clk 0:02:55.8]} 5. e4 {[%clk 0:02:57.5]}
5... d5 {[%clk 0:02:56.7]} 6. e5 {[%clk 0:02:57]} 6... Ne4 {[%clk 0:02:55.7]} 7.
Bd3 {[%clk 0:02:56.7]} 7... Nxc3 {[%clk 0:02:42.1]} 8. bxc3 {[%clk 0:02:56]}
8... c5 {[%clk 0:02:42.9]} 9. h4 {[%clk 0:02:42.9]} 9... dxc4 {[%clk 0:02:34.7]}
10. Bxh7+ {[%clk 0:02:41.3]} 10... Kh8 {[%clk 0:01:59.7]} 11. Be4 {[%clk
0:02:27.7]} 11... cxd4 {[%clk 0:01:56.9]} 12. Ng5 {[%clk 0:02:27.6]} 12... g6
{[%clk 0:01:48.3]} 13. h5 {[%clk 0:02:23.7]} 1-0

[Event "*** Titled Tuesday Blitz"]
[Site "Chess.com"]
[Date "2020.10.27"]
[Round "4"]
[White "blitzking1729"]
[Black "ega2006"]
[Result "1-0"]
[WhiteElo "2566"]
[BlackElo "2353"]
[TimeControl "180+1"]
[EndTime "10:34:45 PDT"]
[Termination "blitzking1729 won by resignation"]

1. d4 {[%clk 0:03:00.9]} 1... Nf6 {[%clk 0:02:59.9]} 2. Bg5 {[%clk 0:03:00.4]}
2... g6 {[%clk 0:02:56.9]} 3. Bxf6 {[%clk 0:02:58.9]} 3... exf6 {[%clk
0:02:57.5]} 4. e3 {[%clk 0:02:59.8]} 4... Bg7 {[%clk 0:02:58.1]} 5. g3 {[%clk
0:02:59.9]} 5... O-O {[%clk 0:02:58.8]} 6. Bg2 {[%clk 0:03:00.3]} 6... d6 {[%clk
0:02:56.6]} 7. Ne2 {[%clk 0:03:00.4]} 7... c5 {[%clk 0:02:54.8]} 8. O-O {[%clk
0:02:57.8]} 8... Nc6 {[%clk 0:02:54.7]} 9. Nbc3 {[%clk 0:02:57]} 9... cxd4
{[%clk 0:02:41.1]} 10. Nxd4 {[%clk 0:02:54.6]} 10... f5 {[%clk 0:02:35.6]} 11.
Nce2 {[%clk 0:02:31.9]} 11... Bd7 {[%clk 0:02:33.5]} 12. c3 {[%clk 0:02:29.7]}
12... Rc8 {[%clk 0:02:31.1]} 13. Nb3 {[%clk 0:02:26.5]} 13... Be6 {[%clk
0:02:30]} 14. Nf4 {[%clk 0:02:25.8]} 14... Bc4 {[%clk 0:02:29.1]} 15. Re1 {[%clk
0:02:25.2]} 15... a5 {[%clk 0:02:21.8]} 16. Qd2 {[%clk 0:02:21.5]} 16... a4
{[%clk 0:02:21.6]} 17. Nd4 {[%clk 0:02:19.5]} 17... Nxd4 {[%clk 0:02:21.4]} 18.
exd4 {[%clk 0:02:16.2]} 18... Ba6 {[%clk 0:02:08.5]} 19. Nd5 {[%clk 0:02:11.3]}
19... Re8 {[%clk 0:02:06.5]} 20. Rxe8+ {[%clk 0:02:08.3]} 20... Qxe8 {[%clk
0:02:06.5]} 21. Re1 {[%clk 0:02:09.1]} 21... Qd7 {[%clk 0:01:57.1]} 22. Ne7+
{[%clk 0:01:59.7]} 22... Kh8 {[%clk 0:01:56.9]} 23. Nxc8 {[%clk 0:01:59.1]}
23... Qxc8 {[%clk 0:01:57.5]} 24. Qe3 {[%clk 0:01:59.4]} 24... Bb5 {[%clk
0:01:58.1]} 25. Qe7 {[%clk 0:01:58.4]} 1-0

[Event "*** Titled Tuesday Blitz"]
[Site "Chess.com"]
[Date "2020.10.27"]
[Round "4"]
[White "googlegoom"]
[Black "pfalcon1949"]
[Result "0-1"]
[WhiteElo "2380"]
[BlackElo "2020"]
[TimeControl "180+1"]
[EndTime "10:35:12 PDT"]
[Termination "pfalcon1949 won by resignation"]

1. Nf3 {[%clk 0:03:00]} 1... c5 {[%clk 0:02:58.1]} 2. b3 {[%clk 0:03:00.1]} 2...
d6 {[%clk 0:02:54.5]} 3. Bb2 {[%clk 0:03:00.5]} 3... e5 {[%clk 0:02:53.7]} 4. e3
{[%clk 0:03:01]} 4... g6 {[%clk 0:02:52.6]} 5. d4 {[%clk 0:03:00.4]} 5... cxd4
{[%clk 0:02:48.8]} 6. exd4 {[%clk 0:03:00.5]} 6... e4 {[%clk 0:02:49.1]} 7. d5
{[%clk 0:02:52.1]} 7... Nf6 {[%clk 0:02:44.3]} 8. Nfd2 {[%clk 0:02:46.8]} 8...
Bg7 {[%clk 0:02:43.8]} 9. Nxe4 {[%clk 0:02:42.3]} 9... O-O {[%clk 0:02:27.7]}
10. Ng3 {[%clk 0:01:28.1]} 10... Re8+ {[%clk 0:02:21.6]} 11. Be2 {[%clk
0:01:27.9]} 11... Qa5+ {[%clk 0:02:03.1]} 12. Bc3 {[%clk 0:01:15.3]} 12... Qxd5
{[%clk 0:01:57.2]} 13. Qxd5 {[%clk 0:01:13.7]} 13... Nxd5 {[%clk 0:01:53.9]} 14.
Bf6 {[%clk 0:01:14]} 14... Nxf6 {[%clk 0:01:42.6]} 0-1

[Event "*** Titled Tuesday Blitz"]
[Site "Chess.com"]
[Date "2020.10.27"]
[Round "4"]
[White "DenLaz"]
[Black "mc4chess"]
[Result "1-0"]
[WhiteElo "2763"]
[BlackElo "2384"]
[TimeControl "180+1"]
[EndTime "10:35:14 PDT"]
[Termination "DenLaz won by resignation"]

1. d4 {[%clk 0:02:54.1]} 1... Nf6 {[%clk 0:02:59.3]} 2. Bf4 {[%clk 0:02:54.5]}
2... e6 {[%clk 0:02:58.5]} 3. e3 {[%clk 0:02:54.7]} 3... c5 {[%clk 0:02:58.8]}
4. Nd2 {[%clk 0:02:52.6]} 4... b6 {[%clk 0:02:58.4]} 5. Ngf3 {[%clk 0:02:50.9]}
5... Bb7 {[%clk 0:02:58.4]} 6. Bd3 {[%clk 0:02:50.3]} 6... cxd4 {[%clk
0:02:58.6]} 7. exd4 {[%clk 0:02:49.6]} 7... d6 {[%clk 0:02:59.1]} 8. O-O {[%clk
0:02:49.5]} 8... Nbd7 {[%clk 0:02:57.8]} 9. a4 {[%clk 0:02:47.3]} 9... a6 {[%clk
0:02:54.7]} 10. c3 {[%clk 0:02:45.6]} 10... Be7 {[%clk 0:02:54.1]} 11. Re1
{[%clk 0:02:45.1]} 11... O-O {[%clk 0:02:53.8]} 12. h3 {[%clk 0:02:44.9]} 12...
Re8 {[%clk 0:02:52.5]} 13. Qe2 {[%clk 0:02:38.4]} 13... Nf8 {[%clk 0:02:50.1]}
14. Bh2 {[%clk 0:02:34.6]} 14... Ng6 {[%clk 0:02:50]} 15. Ne4 {[%clk 0:02:13.9]}
15... Nxe4 {[%clk 0:02:42.6]} 16. Bxe4 {[%clk 0:02:14.8]} 16... Bxe4 {[%clk
0:02:42.1]} 17. Qxe4 {[%clk 0:02:13.3]} 17... d5 {[%clk 0:02:43]} 18. Qd3 {[%clk
0:02:11.3]} 18... Bd6 {[%clk 0:02:43.2]} 19. Bxd6 {[%clk 0:02:08.5]} 19... Qxd6
{[%clk 0:02:44.1]} 20. g3 {[%clk 0:02:08.7]} 20... Reb8 {[%clk 0:02:40.7]} 21.
h4 {[%clk 0:02:06.4]} 21... b5 {[%clk 0:02:39.3]} 22. axb5 {[%clk 0:02:04.7]}
22... Rxb5 {[%clk 0:02:26.3]} 23. Qxb5 {[%clk 0:02:02.9]} 23... axb5 {[%clk
0:02:27.2]} 24. Rxa8+ {[%clk 0:02:03.4]} 24... Nf8 {[%clk 0:02:27.8]} 25. Rea1
{[%clk 0:02:01.2]} 25... g6 {[%clk 0:02:24.2]} 26. Ne5 {[%clk 0:02:00.7]} 26...
f6 {[%clk 0:02:21]} 27. Ng4 {[%clk 0:02:00]} 27... f5 {[%clk 0:01:48.2]} 28. Ne5
{[%clk 0:01:52.4]} 28... b4 {[%clk 0:01:41.5]} 29. R1a7 {[%clk 0:01:49.1]} 1-0

[Event "*** Titled Tuesday Blitz"]
[Site "Chess.com"]
[Date "2020.10.27"]
[Round "4"]
[White "FMOlexandrProhorov"]
[Black "KacperPolOK"]
[Result "0-1"]
[WhiteElo "2117"]
[BlackElo "2403"]
[TimeControl "180+1"]
[EndTime "10:35:45 PDT"]
[Termination "KacperPolOK won by resignation"]

1. e4 {[%clk 0:03:00.9]} 1... c5 {[%clk 0:02:52.9]} 2. c3 {[%clk 0:03:00.5]}
2... d6 {[%clk 0:02:52.3]} 3. d4 {[%clk 0:03:00.4]} 3... Nf6 {[%clk 0:02:52.7]}
4. Bd3 {[%clk 0:02:59.5]} 4... g6 {[%clk 0:02:51.6]} 5. Ne2 {[%clk 0:02:59.4]}
5... Bg7 {[%clk 0:02:51.6]} 6. O-O {[%clk 0:02:58.2]} 6... O-O {[%clk
0:02:51.9]} 7. h3 {[%clk 0:02:56.4]} 7... Nc6 {[%clk 0:02:50.6]} 8. Be3 {[%clk
0:02:56.2]} 8... cxd4 {[%clk 0:02:46.8]} 9. cxd4 {[%clk 0:02:56]} 9... Nb4
{[%clk 0:02:47]} 10. Nbc3 {[%clk 0:02:52.9]} 10... Nxd3 {[%clk 0:02:46.7]} 11.
Qxd3 {[%clk 0:02:53.8]} 11... Be6 {[%clk 0:02:20.8]} 12. Rac1 {[%clk 0:02:50.5]}
12... Rc8 {[%clk 0:02:20.6]} 13. d5 {[%clk 0:02:50.7]} 13... Bd7 {[%clk
0:02:18.9]} 14. Nd4 {[%clk 0:02:40]} 14... a6 {[%clk 0:02:01.3]} 15. b4 {[%clk
0:02:35.3]} 15... Nh5 {[%clk 0:01:57.3]} 16. g4 {[%clk 0:02:28.5]} 16... Nf6
{[%clk 0:01:53.4]} 17. f4 {[%clk 0:02:28.9]} 17... e6 {[%clk 0:01:42.8]} 18.
dxe6 {[%clk 0:02:18.9]} 18... fxe6 {[%clk 0:01:40]} 19. Bf2 {[%clk 0:02:08.5]}
19... Kh8 {[%clk 0:01:26.8]} 20. Bh4 {[%clk 0:02:05.3]} 20... Qb6 {[%clk
0:01:25.6]} 21. Kg2 {[%clk 0:02:00.7]} 21... Nxe4 {[%clk 0:01:20.3]} 22. Nxe4
{[%clk 0:01:50.6]} 22... Rxc1 {[%clk 0:01:18.8]} 23. Rxc1 {[%clk 0:01:48.4]}
23... Bxd4 {[%clk 0:01:17]} 24. Qxd4+ {[%clk 0:01:39.3]} 24... Qxd4 {[%clk
0:01:15.8]} 25. Bf6+ {[%clk 0:01:39.8]} 25... Rxf6 {[%clk 0:01:14.4]} 0-1